[Event "African Games Rapid Open 2019"]
[Site "Casablanca"]
[Date "2019.08.26"]
[Round "3.4"]
[White "Kayonde, Andrew"]
[Black "Tissir, Mohamed"]
[Result "1-0"]
[ECO "B06"]
[WhiteElo "2384"]
[BlackElo "2379"]
[Annotator "NA"]
[PlyCount "63"]
[EventDate "2019.08.26"]
[EventType "team-tourn"]
[EventCountry "MAR"]
[SourceTitle "playchess.com"]
[Source "ChessBase"]
[SourceQuality "1"]
[TimeControl "900+10"]

1. d4 {[%emt 0:00:00]} d6 {[%emt 0:00:00]} 2. e4 {[%emt 0:00:43]} g6 {[%emt 0:00:03]} 3. Nc3 {[%emt 0:00:20]} Bg7 {[%emt 0:00:02]} 4. Be3 Nd7 5. f4 {[%emt 0:01:08]} a6 {[%emt 0:00:06]} 6. Nf3 {[%emt 0:00:11]} b5 {[%emt 0:00:09]} 7. Bd3 {[%emt 0:01:03]} Bb7 {[%emt 0:00:02]} 8. e5 {[%emt 0:00:13]} c5 {[%emt 0:01:45]} 9. Be4 {[%emt 0:01:56]} Bxe4 {[%emt 0:01:55]} 10. Nxe4 {[%emt 0:00:01]} cxd4 {[%emt 0:00:01]} 11. Bxd4 {[%emt 0:00:11]} dxe5 {[%emt 0:00:05]} 12. fxe5 {[%emt 0:00:02]} Nh6 {[%emt 0:02:40]} 13. e6 {[%emt 0:01:01]} Nf6 {[%emt 0:00:02]} 14. Neg5 {[%emt 0:00:12]} Qd5 {[%emt 0:01:27]} 15. Qe2 {[%emt 0:01:33]} O-O {[%emt 0:00:38]} 16. exf7+ {[%emt 0:00:15]} Nxf7 {[%emt 0:00:01]} 17. Ne6 {[%emt 0:00:04]} Rfc8 {[%emt 0:00:25]} 18. Nxg7 {[%emt 0:00:15]} Kxg7 {[%emt 0:00:05]} 19. O-O {[%emt 0:00:04]} Rc7 {[%emt 0:00:06]} 20. c3 {[%emt 0:00:18]} Kg8 {[%emt 0:00:55]} 21. a4 {[%emt 0:00:26]} Qc4 {[%emt 0:00:48]} 22. Rfe1 {[%emt 0:00:09]} Rac8 {[%emt 0:01:55]} 23. axb5 {[%emt 0:00:33]} axb5 {[%emt 0:00:08]} 24. Qf2 {[%emt 0:00:45]} b4 {[%emt 0:01:59]} 25. Qh4 {[%emt 0:00:06]} bxc3 {[%emt 0:00:02]} 26. bxc3 {[%emt 0:00:01]} Qc6 {[%emt 0:00:45]} 27. Rab1 {[%emt 0:00:31]} Nd5 {[%emt 0:00:51]} 28. Ne5 {[%emt 0:01:05]} Nxe5 {[%emt 0:00:05]} 29. Rxe5 {[%emt 0:00:02]} Rf8 {[%emt 0:01:05]} 30. Rbe1 {[%emt 0:01:46]} Rf7 {[%emt 0:01:08]} 31. Re6 {[%emt 0:00:12]} Rf4 {[%emt 0:00:28]} 32. Qh6 {[%emt 0:00:24]} 1-0

[Event "African Games Rapid Open 2019"]
[Site "Casablanca"]
[Date "2019.08.26"]
[Round "3.5"]
[White "Arab, Adlane"]
[Black "Mushore, Emarald Takudzwa"]
[Result "1-0"]
[ECO "D37"]
[WhiteElo "2485"]
[BlackElo "2198"]
[Annotator "ChessBase"]
[PlyCount "111"]
[EventDate "2019.08.26"]
[EventType "team-tourn"]
[EventCountry "MAR"]
[SourceTitle "playchess.com"]
[Source "ChessBase"]
[SourceQuality "1"]
[TimeControl "900+10"]

1. d4 {[%emt 0:00:00]} Nf6 {[%emt 0:00:00]} 2. c4 {[%emt 0:00:00]} e6 {[%emt 0:00:00]} 3. Nf3 {[%emt 0:00:00]} d5 {[%emt 0:00:00]} 4. Nc3 {[%emt 0:00:02]} Be7 {[%emt 0:00:00]} 5. Bf4 {[%emt 0:00:04]} O-O {[%emt 0:00:05]} 6. e3 {[%emt 0:00:01]} c5 {[%emt 0:00:04]} 7. dxc5 {[%emt 0:00:06]} Nc6 {[%emt 0:00:09]} 8. a3 {[%emt 0:00:08]} Bxc5 {[%emt 0:00:10]} 9. Qc2 {[%emt 0:00:02]} Qa5 {[%emt 0:00:29]} 10. Rd1 {[%emt 0:00:13]} Be7 {[%emt 0:00:07]} 11. Nd2 {[%emt 0:00:10]} e5 {[%emt 0:01:27]} 12. Bg3 {[%emt 0:00:04]} d4 {[%emt 0:00:40]} 13. Nb3 {[%emt 0:00:08]} Qd8 {[%emt 0:00:25]} 14. exd4 {[%emt 0:00:16]} exd4 {[%emt 0:00:05]} 15. Nb5 {[%emt 0:00:03]} Bc5 {[%emt 0:01:32]} 16. Nxc5 {[%emt 0:00:20]} Qe7+ {[%emt 0:00:02]} 17. Be2 {[%emt 0:00:02]} Qxc5 {[%emt 0:00:02]} 18. Bd6 {[%emt 0:00:10]} Qg5 {[%emt 0:00:10]} 19. O-O {[%emt 0:00:25]} Bf5 {[%emt 0:00:26]} 20. Bd3 {[%emt 0:00:54]} Bxd3 {[%emt 0:00:12]} 21. Rxd3 {[%emt 0:00:25]} Rfd8 {[%emt 0:00:24]} 22. c5 {[%emt 0:00:12]} Qg6 {[%emt 0:00:56]} 23. Qd1 {[%emt 0:00:12]} Ne4 {[%emt 0:00:17]} 24. Nxd4 {[%emt 0:00:11]} Nxd4 {[%emt 0:01:03]} 25. Rxd4 {[%emt 0:00:02]} b6 {[%emt 0:00:14]} 26. b4 {[%emt 0:01:12]} Rac8 {[%emt 0:00:03]} 27. Re1 {[%emt 0:00:21]} Re8 {[%emt 0:01:30]} 28. Re3 {[%emt 0:01:29]} h6 {[%emt 0:00:21]} 29. h3 {[%emt 0:00:11]} f5 {[%emt 0:01:02]} 30. cxb6 {[%emt 0:00:28]} axb6 {[%emt 0:00:12]} 31. Bf4 {[%emt 0:00:05]} Qf6 {[%emt 0:00:39]} 32. f3 {[%emt 0:00:45]} Ng5 {[%emt 0:00:52]} 33. Rd6 {[%emt 0:00:22]} Qb2 {[%emt 0:01:06]} 34. Bxg5 {[%emt 0:00:11]} hxg5 {[%emt 0:00:04]} 35. Qd5+ {[%emt 0:00:19]} Kh8 {[%emt 0:00:03]} 36. Rxe8+ {[%emt 0:00:02]} Rxe8 {[%emt 0:00:03]} 37. Qxf5 {[%emt 0:01:00]} Qc1+ {[%emt 0:00:22]} 38. Kh2 {[%emt 0:00:01]} Qc7 {[%emt 0:00:02]} 39. Qd7 {[%emt 0:00:04]} Qb8 {[%emt 0:00:07]} 40. Kg1 {[%emt 0:00:16]} Rc8 {[%emt 0:00:13]} 41. Rd1 {[%emt 0:00:21]} b5 {[%emt 0:00:07]} 42. Qf5 {[%emt 0:00:11]} Rd8 {[%emt 0:00:23]} 43. Rf1 {[%emt 0:01:28]} Qg3 {[%emt 0:00:08]} 44. Qg4 {[%emt 0:00:11]} Qe5 {[%emt 0:00:05]} 45. f4 {[%emt 0:00:08]} Qd4+ {[%emt 0:00:18]} 46. Kh2 {[%emt 0:00:13]} gxf4 {[%emt 0:00:12]} 47. Rxf4 {[%emt 0:00:01]} Qd6 {[%emt 0:00:04]} 48. Qg3 {[%emt 0:00:02]} Kg8 {[%emt 0:00:17]} 49. Rg4 {[%emt 0:00:07]} Qf6 {[%emt 0:00:07]} 50. Rg6 {[%emt 0:00:30]} Qa1 {[%emt 0:00:12]} 51. Rg5 {[%emt 0:00:13]} Rd1 {[%emt 0:01:00]} 52. Qb3+ {[%emt 0:00:18]} Kh7 {[%emt 0:00:18]} 53. Qc2+ {[%emt 0:00:02]} Kg8 {[%emt 0:00:04]} 54. Qc8+ {[%emt 0:00:02]} Kh7 {[%emt 0:00:06]} 55. Qf5+ {[%emt 0:00:02]} Kg8 {[%emt 0:00:05]} 56. Qe6+ 1-0

[Event "African Games Rapid Open 2019"]
[Site "Casablanca"]
[Date "2019.08.26"]
[Round "3.6"]
[White "Makoto, Rodwell"]
[Black "Wanyama, Harold"]
[Result "0-1"]
[ECO "A09"]
[WhiteElo "2373"]
[BlackElo "2293"]
[Annotator "NA"]
[PlyCount "72"]
[EventDate "2019.08.26"]
[EventType "team-tourn"]
[EventCountry "MAR"]
[SourceTitle "playchess.com"]
[Source "ChessBase"]
[SourceQuality "1"]
[TimeControl "900+10"]

1. Nf3 {[%emt 0:00:00]} d5 {[%emt 0:00:00]} 2. c4 {[%emt 0:00:00]} d4 {[%emt 0:00:00]} 3. b4 {[%emt 0:00:00]} f6 {[%emt 0:00:40]} 4. e3 {[%emt 0:00:00]} e5 {[%emt 0:00:02]} 5. c5 {[%emt 0:00:00]} a5 {[%emt 0:00:05]} 6. Qa4+ {[%emt 0:00:02]} Bd7 {[%emt 0:00:13]} 7. b5 {[%emt 0:00:01]} Bxc5 {[%emt 0:00:05]} 8. Bc4 {[%emt 0:00:01]} Ne7 {[%emt 0:00:06]} 9. exd4 {[%emt 0:00:07]} exd4 {[%emt 0:00:06]} 10. O-O {[%emt 0:00:02]} Bf5 {[%emt 0:01:12]} 11. Ba3 {[%emt 0:00:36]} Nd7 {[%emt 0:00:25]} 12. d3 {[%emt 0:02:05]} Nb6 {[%emt 0:01:27]} 13. Qc2 {[%emt 0:00:25]} Bxa3 {[%emt 0:00:20]} 14. Nxa3 {[%emt 0:00:02]} Qd6 {[%emt 0:00:02]} 15. Qb2 {[%emt 0:00:47]} O-O-O {[%emt 0:01:36]} 16. Rfe1 {[%emt 0:00:02]} Ng6 {[%emt 0:00:01]} 17. Rac1 {[%emt 0:00:50]} Ne5 {[%emt 0:00:15]} 18. Nxe5 {[%emt 0:00:13]} fxe5 {[%emt 0:00:03]} 19. Re2 {[%emt 0:00:46]} Rde8 {[%emt 0:00:17]} 20. Rce1 {[%emt 0:00:01]} Re7 {[%emt 0:01:00]} 21. f3 {[%emt 0:01:31]} Rhe8 {[%emt 0:00:10]} 22. Qc1 {[%emt 0:00:27]} h6 {[%emt 0:00:12]} 23. Nb1 {[%emt 0:00:02]} Nxc4 {[%emt 0:00:26]} 24. Qxc4 {[%emt 0:00:04]} Qb4 {[%emt 0:00:02]} 25. Nd2 {[%emt 0:03:20]} Qxc4 {[%emt 0:01:13]} 26. dxc4 {[%emt 0:00:01]} Bd3 {[%emt 0:00:15]} 27. Rf2 {[%emt 0:00:01]} b6 {[%emt 0:00:01]} 28. Rc1 {[%emt 0:00:02]} Kb7 {[%emt 0:01:18]} 29. Ne4 {[%emt 0:00:43]} Bxe4 {[%emt 0:00:25]} 30. fxe4 Rd8 31. c5 {[%emt 0:00:59]} bxc5 {[%emt 0:00:23]} 32. Rfc2 {[%emt 0:00:27]} d3 {[%emt 0:00:10]} 33. Rxc5 {[%emt 0:00:01]} Rd4 {[%emt 0:00:13]} 34. Rd1 {[%emt 0:01:18]} Kb6 {[%emt 0:00:09]} 35. Rc3 {[%emt 0:00:01]} Red7 {[%emt 0:00:01]} 36. Kf2 {[%emt 0:00:36]} d2 {[%emt 0:00:15]} 0-1

[Event "African Games Rapid Open 2019"]
[Site "Casablanca"]
[Date "2019.08.26"]
[Round "3.7"]
[White "Elarabi, Abobker Mohamed"]
[Black "Zaibi, Amir"]
[Result "1/2-1/2"]
[ECO "D37"]
[WhiteElo "2326"]
[BlackElo "2367"]
[Annotator "NA"]
[PlyCount "23"]
[EventDate "2019.08.26"]
[EventType "team-tourn"]
[EventCountry "MAR"]
[SourceTitle "playchess.com"]
[Source "ChessBase"]
[SourceQuality "1"]
[TimeControl "900+10"]

1. d4 {[%emt 0:00:00]} d5 {[%emt 0:00:00]} 2. c4 {[%emt 0:00:00]} e6 {[%emt 0:00:00]} 3. Nf3 {[%emt 0:00:03]} Nf6 {[%emt 0:00:00]} 4. Nc3 {[%emt 0:00:19]} Be7 {[%emt 0:00:00]} 5. Bg5 {[%emt 0:00:39]} Nbd7 {[%emt 0:00:09]} 6. e3 {[%emt 0:00:05]} h6 {[%emt 0:00:08]} 7. Bh4 {[%emt 0:01:23]} Ne4 {[%emt 0:00:17]} 8. Bxe7 {[%emt 0:00:04]} Qxe7 {[%emt 0:00:07]} 9. Nxe4 {[%emt 0:00:30]} dxe4 {[%emt 0:00:02]} 10. Nd2 {[%emt 0:00:01]} f5 {[%emt 0:01:37]} 11. Qh5+ {[%emt 0:00:11]} Qf7 {[%emt 0:00:01]} 12. Qxf7+ {[%emt 0:00:07]} 1/2-1/2

[Event "African Games Rapid Open 2019"]
[Site "Casablanca"]
[Date "2019.08.26"]
[Round "3.8"]
[White "Traore, Bakary"]
[Black "Chumfwa, Stanley"]
[Result "1-0"]
[ECO "B99"]
[WhiteElo "2189"]
[BlackElo "2317"]
[Annotator "NA"]
[PlyCount "73"]
[EventDate "2019.08.26"]
[EventType "team-tourn"]
[EventCountry "MAR"]
[SourceTitle "playchess.com"]
[Source "ChessBase"]
[SourceQuality "1"]
[TimeControl "900+10"]

1. e4 {[%emt 0:00:00]} c5 {[%emt 0:00:00]} 2. Nf3 {[%emt 0:00:00]} d6 {[%emt 0:00:00]} 3. d4 {[%emt 0:00:00]} cxd4 {[%emt 0:00:00]} 4. Nxd4 {[%emt 0:00:00]} Nf6 {[%emt 0:00:00]} 5. Nc3 {[%emt 0:00:00]} a6 {[%emt 0:00:00]} 6. Bg5 {[%emt 0:00:04]} e6 {[%emt 0:00:01]} 7. f4 {[%emt 0:00:01]} Be7 {[%emt 0:00:01]} 8. Qf3 {[%emt 0:00:01]} Qc7 {[%emt 0:00:02]} 9. O-O-O {[%emt 0:00:11]} Nbd7 {[%emt 0:00:02]} 10. g4 {[%emt 0:00:03]} b5 {[%emt 0:00:05]} 11. Bxf6 {[%emt 0:00:21]} Nxf6 {[%emt 0:00:03]} 12. g5 {[%emt 0:00:05]} Nd7 {[%emt 0:00:02]} 13. f5 {[%emt 0:00:04]} Nc5 {[%emt 0:01:03]} 14. f6 {[%emt 0:00:51]} gxf6 {[%emt 0:00:02]} 15. gxf6 {[%emt 0:00:01]} Bf8 {[%emt 0:00:01]} 16. Rg1 {[%emt 0:00:36]} h5 {[%emt 0:00:02]} 17. Kb1 {[%emt 0:00:05]} b4 {[%emt 0:00:16]} 18. Nce2 {[%emt 0:00:36]} Bb7 {[%emt 0:00:17]} 19. Ng3 {[%emt 0:00:45]} h4 {[%emt 0:00:29]} 20. Nh5 {[%emt 0:00:05]} Bxe4 {[%emt 0:01:01]} 21. Ng7+ {[%emt 0:00:01]} Kd7 {[%emt 0:01:29]} 22. Qe3 {[%emt 0:00:13]} d5 {[%emt 0:00:43]} 23. Bg2 {[%emt 0:01:11]} Kc8 {[%emt 0:00:09]} 24. Bxe4 {[%emt 0:00:25]} Nxe4 {[%emt 0:00:03]} 25. Ndxe6 {[%emt 0:00:14]} fxe6 {[%emt 0:00:25]} 26. Nxe6 {[%emt 0:00:01]} Qc6 {[%emt 0:01:52]} 27. Qh3 {[%emt 0:00:12]} Kb7 {[%emt 0:01:06]} 28. Qf5 {[%emt 0:00:32]} Rc8 {[%emt 0:00:51]} 29. Ka1 {[%emt 0:00:26]} Ka8 {[%emt 0:04:22]} 30. Rxd5 {[%emt 0:00:34]} Nxf6 {[%emt 0:01:18]} 31. Rd8 {[%emt 0:01:30]} Rxd8 {[%emt 0:01:10]} 32. Nxd8 {[%emt 0:00:05]} Qb6 {[%emt 0:00:20]} 33. Rd1 {[%emt 0:00:25]} Bc5 {[%emt 0:02:12]} 34. Qc8+ {[%emt 0:00:25]} Qb8 {[%emt 0:00:08]} 35. Qxa6+ {[%emt 0:00:29]} Qa7 {[%emt 0:00:10]} 36. Qc8+ {[%emt 0:00:12]} Qb8 37. Qc6+ {[%emt 0:00:03]} 1-0

[Event "African Games Rapid Open 2019"]
[Site "Casablanca"]
[Date "2019.08.26"]
[Round "3.9"]
[White "Khetho, Phemelo"]
[Black "Adu, Oladapo"]
[Result "1/2-1/2"]
[ECO "B20"]
[WhiteElo "2178"]
[BlackElo "2273"]
[Annotator "NA"]
[PlyCount "124"]
[EventDate "2019.08.26"]
[EventType "team-tourn"]
[EventCountry "MAR"]
[SourceTitle "playchess.com"]
[Source "ChessBase"]
[SourceQuality "1"]
[TimeControl "900+10"]

1. e4 {[%emt 0:00:00]} c5 {[%emt 0:00:00]} 2. b3 {[%emt 0:00:00]} Nc6 {[%emt 0:00:00]} 3. Bb2 {[%emt 0:00:00]} d6 {[%emt 0:00:02]} 4. Bb5 {[%emt 0:00:00]} Bd7 {[%emt 0:00:11]} 5. f4 {[%emt 0:00:04]} a6 {[%emt 0:00:04]} 6. Bxc6 {[%emt 0:00:05]} Bxc6 {[%emt 0:00:03]} 7. d3 {[%emt 0:00:03]} e6 {[%emt 0:00:06]} 8. Nf3 {[%emt 0:00:06]} Nf6 {[%emt 0:00:05]} 9. O-O {[%emt 0:00:06]} Be7 {[%emt 0:00:12]} 10. Nbd2 {[%emt 0:00:08]} b5 {[%emt 0:00:03]} 11. c4 {[%emt 0:00:13]} d5 {[%emt 0:00:15]} 12. cxd5 {[%emt 0:02:44]} exd5 {[%emt 0:00:03]} 13. e5 {[%emt 0:00:03]} Ng4 {[%emt 0:00:21]} 14. Re1 {[%emt 0:00:10]} d4 {[%emt 0:00:08]} 15. Nf1 {[%emt 0:00:02]} Nh6 {[%emt 0:01:15]} 16. b4 {[%emt 0:00:11]} Nf5 {[%emt 0:01:38]} 17. bxc5 {[%emt 0:00:46]} h5 {[%emt 0:00:06]} 18. Rc1 {[%emt 0:00:52]} Qd5 {[%emt 0:00:11]} 19. Qb3 {[%emt 0:00:18]} Qd8 {[%emt 0:02:09]} 20. e6 {[%emt 0:01:45]} f6 {[%emt 0:00:08]} 21. N1d2 {[%emt 0:01:49]} Rc8 {[%emt 0:01:24]} 22. Ne4 {[%emt 0:00:16]} O-O {[%emt 0:01:51]} 23. Nd6 {[%emt 0:02:14]} Nxd6 {[%emt 0:01:34]} 24. cxd6 {[%emt 0:00:02]} Qxd6 {[%emt 0:00:02]} 25. Nxd4 {[%emt 0:00:07]} Bd5 {[%emt 0:00:02]} 26. Qd1 {[%emt 0:00:31]} Qxf4 {[%emt 0:00:15]} 27. Rxc8 {[%emt 0:00:09]} Rxc8 {[%emt 0:00:01]} 28. Qxh5 {[%emt 0:00:11]} Qg5 {[%emt 0:03:29]} 29. Qxg5 {[%emt 0:00:35]} fxg5 {[%emt 0:00:01]} 30. Nf5 {[%emt 0:00:04]} Bc5+ {[%emt 0:00:15]} 31. Kf1 {[%emt 0:01:20]} Bb4 {[%emt 0:00:44]} 32. Re5 {[%emt 0:00:30]} Bxa2 {[%emt 0:00:02]} 33. Re4 {[%emt 0:00:30]} g6 {[%emt 0:00:59]} 34. e7 {[%emt 0:00:57]} Re8 {[%emt 0:00:23]} 35. Nh6+ {[%emt 0:00:03]} Kh7 {[%emt 0:00:03]} 36. Ng4 {[%emt 0:00:03]} Bxe7 {[%emt 0:00:13]} 37. Bf6 {[%emt 0:00:07]} Bb1 {[%emt 0:00:31]} 38. Ke2 {[%emt 0:01:08]} Bxd3+ {[%emt 0:00:03]} 39. Kxd3 {[%emt 0:00:03]} Rd8+ {[%emt 0:00:01]} 40. Rd4 {[%emt 0:01:09]} Rxd4+ {[%emt 0:00:01]} 41. Kxd4 {[%emt 0:00:01]} Bd6 {[%emt 0:00:13]} 42. Bxg5 {[%emt 0:00:08]} a5 {[%emt 0:00:06]} 43. Kd5 {[%emt 0:00:15]} Bf8 {[%emt 0:00:27]} 44. Kc6 {[%emt 0:00:25]} b4 {[%emt 0:00:01]} 45. Kb5 {[%emt 0:00:01]} b3 {[%emt 0:00:02]} 46. Nf6+ {[%emt 0:00:39]} Kg7 {[%emt 0:00:18]} 47. Ne4 {[%emt 0:00:02]} Ba3 {[%emt 0:00:21]} 48. Ka4 {[%emt 0:00:11]} b2 {[%emt 0:00:03]} 49. Nd2 {[%emt 0:00:06]} Bb4 {[%emt 0:00:04]} 50. Nb1 {[%emt 0:00:01]} Kf7 {[%emt 0:00:02]} 51. Bd8 {[%emt 0:00:02]} Bd6 {[%emt 0:00:02]} 52. h3 {[%emt 0:00:21]} Ke6 {[%emt 0:00:01]} 53. Bxa5 {[%emt 0:00:03]} Kd5 {[%emt 0:00:03]} 54. Kb3 {[%emt 0:00:05]} Ke4 {[%emt 0:00:01]} 55. Kxb2 {[%emt 0:00:21]} Ke3 {[%emt 0:00:01]} 56. Be1 {[%emt 0:00:04]} Ke2 {[%emt 0:00:01]} 57. Bh4 {[%emt 0:00:04]} Kf1 {[%emt 0:00:01]} 58. g4 {[%emt 0:01:03]} Kg2 {[%emt 0:00:02]} 59. Bf6 {[%emt 0:00:01]} Kxh3 {[%emt 0:00:03]} 60. g5 {[%emt 0:00:01]} Kg4 {[%emt 0:00:03]} 61. Nc3 {[%emt 0:00:21]} Bf4 {[%emt 0:00:04]} 62. Ne4 {[%emt 0:00:09]} Kf5 {[%emt 0:00:03]} 1/2-1/2

[Event "African Games Rapid Open 2019"]
[Site "Casablanca"]
[Date "2019.08.26"]
[Round "3.10"]
[White "Aderito, Pedro"]
[Black "Rita, Jeorciley"]
[Result "1-0"]
[ECO "A05"]
[WhiteElo "2301"]
[BlackElo "1920"]
[Annotator "NA"]
[PlyCount "91"]
[EventDate "2019.08.26"]
[EventType "team-tourn"]
[EventCountry "MAR"]
[SourceTitle "playchess.com"]
[Source "ChessBase"]
[SourceQuality "1"]
[TimeControl "900+10"]

1. Nf3 {[%emt 0:00:00]} Nf6 {[%emt 0:00:05]} 2. g3 {[%emt 0:00:00]} g6 {[%emt 0:00:22]} 3. Bg2 {[%emt 0:00:02]} Bg7 {[%emt 0:00:00]} 4. O-O {[%emt 0:00:03]} O-O {[%emt 0:00:01]} 5. d3 {[%emt 0:00:24]} d6 {[%emt 0:00:16]} 6. e4 {[%emt 0:00:07]} e5 {[%emt 0:00:01]} 7. Re1 {[%emt 0:00:07]} Nc6 {[%emt 0:00:03]} 8. c3 {[%emt 0:00:09]} Re8 {[%emt 0:00:28]} 9. b4 {[%emt 0:01:13]} a6 {[%emt 0:01:05]} 10. Nbd2 {[%emt 0:00:14]} b5 {[%emt 0:00:03]} 11. a4 {[%emt 0:00:04]} Bb7 {[%emt 0:00:01]} 12. Nb3 {[%emt 0:00:59]} Qd7 {[%emt 0:00:57]} 13. Ng5 {[%emt 0:00:20]} h6 {[%emt 0:00:10]} 14. Bh3 {[%emt 0:00:04]} Qe7 {[%emt 0:00:00]} 15. Nf3 {[%emt 0:00:01]} Bc8 {[%emt 0:00:13]} 16. Bg2 {[%emt 0:00:13]} Bg4 {[%emt 0:00:06]} 17. h3 {[%emt 0:00:03]} Be6 {[%emt 0:00:01]} 18. Kh2 {[%emt 0:00:11]} Kh7 {[%emt 0:00:02]} 19. Bb2 {[%emt 0:00:56]} Red8 {[%emt 0:01:29]} 20. Qc2 {[%emt 0:00:14]} Qd7 {[%emt 0:01:03]} 21. Nfd2 {[%emt 0:00:36]} Qe7 {[%emt 0:00:37]} 22. Nf1 {[%emt 0:00:12]} Nd7 {[%emt 0:00:51]} 23. Ne3 {[%emt 0:00:13]} Qe8 {[%emt 0:01:18]} 24. Nd5 {[%emt 0:00:25]} Bxd5 {[%emt 0:00:01]} 25. exd5 {[%emt 0:00:01]} Ne7 {[%emt 0:00:00]} 26. c4 {[%emt 0:00:44]} Rab8 {[%emt 0:00:06]} 27. axb5 {[%emt 0:00:02]} axb5 {[%emt 0:00:01]} 28. Bc3 {[%emt 0:00:37]} Nb6 {[%emt 0:00:15]} 29. Na5 {[%emt 0:00:16]} Na4 {[%emt 0:00:20]} 30. Bd2 {[%emt 0:00:25]} e4 {[%emt 0:00:24]} 31. dxe4 {[%emt 0:00:09]} Bxa1 {[%emt 0:00:07]} 32. Rxa1 {[%emt 0:00:02]} Nb6 {[%emt 0:00:22]} 33. c5 {[%emt 0:00:06]} Nc4 {[%emt 0:00:08]} 34. Nxc4 {[%emt 0:00:04]} bxc4 {[%emt 0:00:01]} 35. Qxc4 {[%emt 0:00:04]} c6 {[%emt 0:00:21]} 36. Bf4 {[%emt 0:00:27]} cxd5 {[%emt 0:00:12]} 37. exd5 {[%emt 0:00:02]} Qb5 {[%emt 0:02:15]} 38. Qxb5 {[%emt 0:00:05]} Rxb5 {[%emt 0:00:01]} 39. Bxd6 {[%emt 0:00:04]} Nc8 {[%emt 0:00:48]} 40. Bc7 {[%emt 0:00:27]} Rd7 {[%emt 0:00:01]} 41. d6 {[%emt 0:00:26]} Rxb4 {[%emt 0:00:53]} 42. Ra8 {[%emt 0:00:26]} Ne7 {[%emt 0:00:35]} 43. c6 {[%emt 0:00:42]} Nxc6 {[%emt 0:01:52]} 44. Bxc6 {[%emt 0:00:03]} Rxd6 {[%emt 0:00:02]} 45. Bxd6 {[%emt 0:00:02]} Rb6 {[%emt 0:00:02]} 46. Be5 {[%emt 0:00:15]} 1-0

[Event "African Games Rapid Open 2019"]
[Site "Casablanca"]
[Date "2019.08.26"]
[Round "3.11"]
[White "Osunfuyi, Abimbola"]
[Black "Amba, Oyon Marius Claude"]
[Result "0-1"]
[ECO "A15"]
[WhiteElo "2235"]
[BlackElo "1911"]
[Annotator "NA"]
[PlyCount "66"]
[EventDate "2019.08.26"]
[EventType "team-tourn"]
[EventCountry "MAR"]
[SourceTitle "playchess.com"]
[Source "ChessBase"]
[SourceQuality "1"]
[TimeControl "900+10"]

1. c4 {[%emt 0:00:00]} Nf6 {[%emt 0:00:00]} 2. g3 {[%emt 0:00:00]} g6 {[%emt 0:00:00]} 3. Bg2 {[%emt 0:00:02]} Bg7 {[%emt 0:00:00]} 4. Nc3 {[%emt 0:00:11]} c5 {[%emt 0:00:18]} 5. d3 {[%emt 0:00:08]} a6 {[%emt 0:00:04]} 6. a3 {[%emt 0:00:02]} Qc7 {[%emt 0:00:07]} 7. Bf4 {[%emt 0:00:35]} e5 {[%emt 0:00:29]} 8. Bd2 {[%emt 0:00:02]} d6 {[%emt 0:00:05]} 9. b4 {[%emt 0:00:05]} Bd7 {[%emt 0:00:47]} 10. Rc1 {[%emt 0:00:02]} Bc6 {[%emt 0:00:19]} 11. Nd5 {[%emt 0:00:06]} Bxd5 {[%emt 0:00:17]} 12. cxd5 {[%emt 0:00:03]} b6 {[%emt 0:00:38]} 13. Nh3 {[%emt 0:00:22]} Nbd7 {[%emt 0:00:07]} 14. O-O {[%emt 0:00:04]} Rc8 {[%emt 0:00:19]} 15. e4 {[%emt 0:00:14]} O-O {[%emt 0:00:13]} 16. f4 {[%emt 0:00:01]} exf4 {[%emt 0:00:18]} 17. gxf4 {[%emt 0:00:18]} Nh5 {[%emt 0:01:00]} 18. Bf3 {[%emt 0:00:41]} Bd4+ {[%emt 0:00:12]} 19. Kh1 {[%emt 0:00:10]} Ng7 {[%emt 0:00:02]} 20. Qb3 {[%emt 0:00:19]} Qd8 {[%emt 0:00:16]} 21. Be1 {[%emt 0:00:51]} cxb4 {[%emt 0:00:47]} 22. Rxc8 {[%emt 0:00:16]} Qxc8 {[%emt 0:00:02]} 23. axb4 {[%emt 0:00:07]} Ne5 {[%emt 0:00:50]} 24. fxe5 {[%emt 0:03:13]} Qxh3 {[%emt 0:00:05]} 25. Bg2 {[%emt 0:00:29]} Qh5 {[%emt 0:00:07]} 26. e6 {[%emt 0:01:23]} Be5 {[%emt 0:00:10]} 27. h3 {[%emt 0:00:03]} fxe6 {[%emt 0:02:23]} 28. Rxf8+ {[%emt 0:00:15]} Kxf8 {[%emt 0:00:02]} 29. Bf2 {[%emt 0:00:18]} Qe2 {[%emt 0:02:01]} 30. Bg1 {[%emt 0:00:41]} Qe1 {[%emt 0:01:34]} 31. Qc4 {[%emt 0:00:49]} Nh5 {[%emt 0:00:40]} 32. dxe6 {[%emt 0:03:59]} Ng3+ {[%emt 0:00:07]} 33. Kh2 {[%emt 0:00:04]} Ne2+ {[%emt 0:00:13]} 0-1